Cogmind - Beta 13 @@@ ROGUE MODE // 2024.04.09 @ 20:31:03 Player: AntinDisguise Result: Destroyed by H-55 Commando with Gauss Rifle Performance ------------- Evolutions (2) 1000 Regions Visited (4) 800 Robots Destroyed (127) 635 Value Destroyed (3410) 3410 Prototype IDs (6) 120 Alien Tech Used (0) 0 Bonus (1001) 1001 TOTAL SCORE: 6966 Bonus ------- High Alert Combat Kills 301 Entered Garrisons 200 Used RIF Installer 500 Cogmind --------- Core Integrity 0/550 Matter 240/300 Energy 100/100 System Corruption 2% Temperature Cool (0) Movement Treading (330) Ox2 Location -8/Garrison Parts ------- > --- POWER (2) -------- (None) > --- PROPULSION (3) --- Armored Treads > --- UTILITY (3) ------ Improved Heat Sink Advanced Heat Sink High-capacity Storage Unit > --- WEAPON (3) ------- Minigun > --- INVENTORY (20) --- Huge Storage Unit Relay Coupler [Grunt] (23) Relay Coupler [Specialist] (17) Peak State ------------ > --- POWER ------------ Light Deuterium Engine Light Nuclear Core > --- PROPULSION ------- Improved Treads Armored Treads Advanced Treads > --- UTILITY ---------- Improved Heat Sink Advanced Heat Sink High-capacity Storage Unit > --- WEAPON ----------- Light Assault Rifle Minigun Minigun > --- INVENTORY -------- Huge Storage Unit Reaction Control System Relay Coupler [Grunt] Relay Coupler [Specialist] [Rating: 31] Favorites ----------- Power Heavy Ion Engine Engine Heavy Ion Engine Power Core Nuclear Core Propulsion Light Treads Treads Light Treads Utility High-capacity Storage Unit Device Heat Sink Storage High-capacity Storage Unit Weapon Assault Cannon Energy Gun Heavy Particle Gun Energy Cannon EM Pulse Cannon Ballistic Gun Minigun Ballistic Cannon Assault Cannon Launcher Shock Bomb Launcher Build | -11 -10 -9 -8 -8 ------- Run | Yrd Mat Mat Mat Gar Slots Evolved 4 | . . 2 2 . Power 1 | . . 1 . . Propulsion 1 | . . . 1 . Utility 1 | . . 1 . . Weapon 1 | . . . 1 . Parts Attached 77 | 6 7 24 28 12 Power 16 | 1 . 6 7 2 Engine 13 | 1 . 6 5 1 Core 3 | . . . 2 1 Reactor . | . . . . . Propulsion 23 | 2 . 7 10 4 Treads 23 | 2 . 7 10 4 Leg . | . . . . . Wheel . | . . . . . Hover . | . . . . . Flight . | . . . . . Utility 14 | 1 3 5 3 2 Device 10 | . 2 3 3 2 Storage 4 | 1 1 2 . . Processor . | . . . . . Hackware . | . . . . . Protection . | . . . . . Artifact . | . . . . . Weapon 24 | 2 4 6 8 4 Energy Gun 5 | 1 1 1 2 . Energy Cannon 1 | . . . . 1 Ballistic Gun 9 | 1 1 3 1 3 Ballistic Cannon 6 | . . 2 4 . Launcher 3 | . 2 . 1 . Special Weapon . | . . . . . Impact Weapon . | . . . . . Slashing Weapon . | . . . . . Piercing Weapon . | . . . . . Special Melee Weapon . | . . . . . Unidentified Prototypes 4 | . . 3 1 . Parts Lost 39 | . 3 4 15 17 Power 8 | . . . 4 4 Propulsion 14 | . . 2 6 6 Utility 5 | . 1 1 1 2 Weapon 12 | . 2 1 4 5 Highest Loss Streak 8 | . 3 2 4 8 To Critical Strikes 1 | . . . 1 . Average Slot Usage (%) 96 | . 96 98 97 92 Engine 16 | . 14 21 13 8 Core 2 | . . . 4 7 Treads 24 | . 28 21 26 25 Device 17 | . 10 21 17 14 Storage 10 | . 14 11 9 9 Energy Gun 3 | . 3 . 5 3 Ballistic Gun 8 | . 2 11 4 10 Ballistic Cannon 9 | . . 9 12 5 Launcher 4 | . 21 . 4 4 Naked Turns . | . . . . . Heaviest Build 110 | 14 36 110 80 73 Greatest Support 65 | 40 40 40 60 65 Greatest Overweight (x) 3 | . . 2 3 2 Average Overweight (x) . | . . . . . Largest Inventory Capacity 25 | 8 15 25 20 20 Average Capacity 18 | 6 13 17 20 20 Most Carried 19 | 5 5 17 19 10 Average Carried 10 | 2 3 12 11 6 Final Capacity 20 | 8 15 20 20 20 Final Carried 15 | 2 3 15 9 3 Class Distribution -------------------- 54% | Mutant 26% | Scavenger-Skirmisher 9% | Skirmisher 6% | Scavenger-Gunner Dominant Class ---------------- Mutant | -10/Materials Mutant | -9/Materials Scavenger-Skirmisher | -8/Materials Scavenger-Skirmisher | -8/Garrison Resources | -11 -10 -9 -8 -8 ----------- Run | Yrd Mat Mat Mat Gar Matter Collected 3318 | 214 131 1386 889 698 Remotely . | . . . . . Salvage Created 3830 | . 196 1416 1283 935 Parts 253 | . 16 121 75 41 Haulers Intercepted 6 | . . 4 2 . Recyclers Shooed 3 | . 2 . 1 . Parts Field Recycled 8 | . . 5 3 . Retrieved Matter 99 | . . 31 68 . Parts Self-Destructed . | . . . . . Prevented . | . . . . . Kills | -11 -10 -9 -8 -8 ------- Run | Yrd Mat Mat Mat Gar Combat Hostiles Destroyed 91 | . 8 37 25 21 Guns 40 | . 2 18 9 11 Cannons 36 | . . 19 12 5 AOE 15 | . 6 . 4 5 Classes Destroyed 13 | . 3 6 3 1 Worker 9 | . 1 5 3 . Builder 6 | . . 3 3 . Tunneler 3 | . . 2 1 . Hauler 6 | . . 4 2 . Recycler 3 | . . 1 2 . Mechanic 1 | . . . 1 . Operator 1 | . . . 1 . Watcher 7 | . 1 4 2 . Swarmer 30 | . . 17 5 8 Cutter 2 | . . . . 2 Grunt 41 | . 8 11 13 9 Duelist 1 | . . . 1 . Sentry 17 | . . 9 6 2 Best Kill Streak 12 | . 3 12 7 5 Combat Bots Only 8 | . 3 8 5 5 Max Kills in Single Turn 3 | . 2 2 3 2 Gunslinging 1 | . . . . 1 Exploded 2 | . 1 . 2 2 Melee . | . . . . . Uniques/NPCs Destroyed . | . . . . . Combat | -11 -10 -9 -8 -8 -------- Run | Yrd Mat Mat Mat Gar Hostile Shots Fired 687 | . 40 268 185 194 Missed 196 | . 14 89 42 51 Damage Taken 6105 | . 500 1310 2302 1993 Core 778 | . 55 157 300 266 Absorbed by Shields 468 | . . 468 . . Core Remaining (%) 79 | 100 78 60 . . Volleys Fired 295 | . 20 123 75 77 Largest 3 | . 2 2 3 3 Hottest 143 | . 70 70 143 143 Shots Fired 688 | . 36 233 207 212 Gun 390 | . 16 134 72 168 Cannon 238 | . . 99 111 28 Launcher 60 | . 20 . 24 16 Special . | . . . . . Kinetic 551 | . 6 224 144 177 Thermal 73 | . 10 9 39 15 Explosive 20 | . 20 . . . Electromagnetic 44 | . . . 24 20 Robot Hit Streak 20 | . 11 12 9 20 Robot Miss Streak 5 | . 3 5 4 5 Penetration Max . | . . . . . Secondary Targets 5 | . . 2 . 3 Max Gunslinging Chain 1 | . . 1 . 1 Shots Hit Robots 409 | . 24 127 123 135 Core Hits 197 | . 20 60 60 57 Critical Kills . | . . . . . Critical Parts Destroyed 4 | . . . 1 3 Critical Strikes 11 | . 1 2 5 3 Burn 2 | . 1 . 1 . Destroy 4 | . . . 1 3 Blast 5 | . . 2 3 . Melee Attacks . | . . . . . Impact . | . . . . . Slashing . | . . . . . Piercing . | . . . . . Sneak Attacks . | . . . . . Combat Hostiles . | . . . . . Follow-up Attacks . | . . . . . Damage Inflicted 9215 | . 985 2743 3294 2193 Guns 3648 | . 147 1312 841 1348 Cannons 3370 | . . 1258 1803 309 Explosions 2197 | . 838 173 650 536 Melee . | . . . . . Ramming . | . . . . . Kinetic 6256 | . 61 2533 2166 1496 Thermal 795 | . 86 37 524 148 Explosive 1011 | . 838 173 . . Electromagnetic 1153 | . . . 604 549 Impact . | . . . . . Slashing . | . . . . . Piercing . | . . . . . Highest Corruption 2 | . . . 1 2 Average Corruption 1 | . . . 1 1 Corruption Purged . | . . . . . Corruption Blocked . | . . . . . Effects 15 | . . . 6 9 Message Errors 7 | . . . 2 5 Matter Fused 1 | . . . 1 . Heat Flow Errors 3 | . . . 1 2 Energy Discharges 1 | . . . 1 . Data Loss (minor) 2 | . . . 1 1 Weapon Failures 1 | . . . . 1 Overload Shots . | . . . . . Overflow Damage 82 | . 23 32 22 5 Projectiles 36 | . . 32 4 . Explosions 46 | . 23 . 18 5 Melee . | . . . . . Knockbacks 33 | . . 8 23 2 Impact . | . . . . . Kinetic 29 | . . 7 20 2 Secondary 4 | . . 1 3 . Self-Inflicted Damage 410 | . 198 . 186 26 Shots 27 | . 10 . 12 5 Rammed . | . . . . . Targets Rammed . | . . . . . Kicked . | . . . . . Crushed . | . . . . . Highest Temperature 635 | . 140 82 635 527 Average Temperature 91 | . 52 15 124 137 Received Heat Transfer 2114 | . 186 254 990 684 Effects 31 | . . . 24 7 Shutdowns 6 | . . . 4 2 Energy Bleed 4 | . . . 3 1 Interference 7 | . . . 7 . Short Circuit 4 | . . . 3 1 Damage (minor) 2 | . . . 1 1 Damage (major) 7 | . . . 5 2 Damage (core) 1 | . . . 1 . Siege Activations . | . . . . . Robots Corrupted . | . . . . . Combat Hostiles . | . . . . . Parts Fried 5 | . . 2 1 2 Impact Corruptions 1 | . . 1 . . Robots Melted . | . . . . . Combat Hostiles . | . . . . . Parts Melted 1 | . 1 . . . Heat Transferred 1752 | . 333 111 1049 259 Parts Sabotaged . | . . . . . Parts Stolen . | . . . . . Parts Stripped . | . . . . . Power Chain Reactions 7 | . . . 6 1 Alert | -11 -10 -9 -8 -8 ------- Run | Yrd Mat Mat Mat Gar Peak Influence 833 | . 297 833 461 657 Initial 336 | . . 70 336 201 Average 359 | . 91 450 307 447 Maximum Alert Level 3 | . 1 3 2 2 Low Security (%) 22 | 100 96 13 16 . Level 1 38 | . 3 21 67 42 Level 2 33 | . . 51 16 57 Level 3 5 | . . 13 . . Level 4 . | . . . . . Level 5 . | . . . . . High Security . | . . . . . Max Security . | . . . . . Squads Dispatched 11 | . 2 5 4 . Investigation 6 | . 2 2 2 . Extermination . | . . . . . Reinforcement 5 | . . 3 2 . Assault . | . . . . . Garrison . | . . . . . Intercept . | . . . . . Searches Triggered . | . . . . . Construction Impeded . | . . . . . Haulers Reinforced . | . . . . . Active Scanning Responses . | . . . . . Cargo Convoy Interrupts . | . . . . . Stealth | -11 -10 -9 -8 -8 --------- Run | Yrd Mat Mat Mat Gar Distress Signals 4 | . . 1 3 . Communications Jammed . | . . . . . Distress Signals . | . . . . . Times Spotted 121 | . 10 54 35 22 Peak Tracking Total 7 | . 3 7 5 5 Tactical Retreats 4 | . . 3 . 1 Traps | -11 -10 -9 -8 -8 ------- Run | Yrd Mat Mat Mat Gar Traps Triggered 5 | . 2 . 1 2 Indirectly 1 | . . . . 1 Trap Hack Attempts . | . . . . . Triggered . | . . . . . Disarmed 5 | . . . 5 . Reprogrammed . | . . . . . Reused . | . . . . . Traps Extracted . | . . . . . Installed . | . . . . . Triggered 1 | . . . . 1 Machines | -11 -10 -9 -8 -8 ---------- Run | Yrd Mat Mat Mat Gar Machines Disabled 11 | . 1 5 3 2 Max in Single Turn 2 | . 1 2 1 1 Garrison Relay 1 | . . . . 1 Machines Repaired . | . . . . . Machines Dismantled . | . . . . . Machines Sabotaged . | . . . . . Overloaded Fab Kills . | . . . . . Hacking | -11 -10 -9 -8 -8 --------- Run | Yrd Mat Mat Mat Gar Machines Accessed 9 | . 1 6 2 . Terminals 8 | . 1 6 1 . Fabricators . | . . . . . Repair Stations . | . . . . . Recycling Units . | . . . . . Scanalyzers . | . . . . . Garrison Access 1 | . . . 1 . Total Hacks 26 | . 3 15 8 . Successful 17 | . 2 10 5 . Failed 9 | . 1 5 3 . Catastrophic 2 | . . . 2 . Database Lockouts . | . . . . . Manual . | . . . . . Terminals 23 | . 3 15 5 . Fabricators . | . . . . . Repair Stations . | . . . . . Recycling Units . | . . . . . Scanalyzers . | . . . . . Garrison Access 3 | . . . 3 . Terminal Hacks 16 | . 2 10 4 . Record 1 | . . . 1 . Prototype ID Bank 1 | . . 1 . . Branch Access Points 1 | . . 1 . . Terminal Index 1 | . . 1 . . Alert Level 1 | . 1 . . . Unreport Threat 1 | . . . 1 . Locate Traps 1 | . . . 1 . Disarm Traps 1 | . . . 1 . Dispatch Records 1 | . . 1 . . Maintenance Status 2 | . . 2 . . Surveillance Status 1 | . . 1 . . Transport Status 1 | . 1 . . . Hauler Manifests 1 | . . 1 . . Zone Layout 2 | . . 2 . . Fabricator Hacks . | . . . . . Repair Station Hacks . | . . . . . Recycling Unit Hacks . | . . . . . Scanalyzer . | . . . . . Garrison Access Hacks 1 | . . . 1 . Unlock Access 1 | . . . 1 . Unauthorized Hacks . | . . . . . Terminals . | . . . . . Fabricators . | . . . . . Repair Stations . | . . . . . Recycling Units . | . . . . . Scanalyzers . | . . . . . Garrison Access . | . . . . . Data Cores Recovered . | . . . . . Used . | . . . . . Hacking Detections 8 | . 1 5 2 . Full Trace Events 3 | . . 2 1 . Feedback Events . | . . . . . Feedback Blocked . | . . . . . Robot Schematics Acquired . | . . . . . Robots Built . | . . . . . Authchips . | . . . . . Time . | . . . . . Total Robot Build Rating . | . . . . . Part Schematics Acquired . | . . . . . Parts Built . | . . . . . Authchips . | . . . . . Time . | . . . . . Total Part Build Rating . | . . . . . Parts Repaired . | . . . . . Time . | . . . . . Parts Recycled . | . . . . . Recycled Matter . | . . . . . Retrieved Matter . | . . . . . Retrieved Components . | . . . . . Parts Scanalyzed . | . . . . . Part Schematics Acquired . | . . . . . Parts Damaged . | . . . . . Bothacking | -11 -10 -9 -8 -8 ------------ Run | Yrd Mat Mat Mat Gar Used RIF Installer 1 | . . . . 1 Robots Hacked . | . . . . . Non-combat . | . . . . . Combat . | . . . . . Robot Hacks Applied . | . . . . . Relay Couplers Released 5 | . . . . 5 Machine Destruction 5 | . . . . 5 Fabnet Peak Effective % . | . . . . . Robots Rewired . | . . . . . Allies Hacked . | . . . . . Hacks Repelled . | . . . . . Allies | -11 -10 -9 -8 -8 -------- Run | Yrd Mat Mat Mat Gar Total Allies . | . . . . . Largest Group . | . . . . . Highest-Rated Group . | . . . . . Highest-Rated Ally . | . . . . . Total Orders . | . . . . . Ally Attacks . | . . . . . Total Damage . | . . . . . Kills . | . . . . . Allies Corrupted . | . . . . . Allies Melted . | . . . . . Intel | -11 -10 -9 -8 -8 ------- Run | Yrd Mat Mat Mat Gar Robot Analysis Total . | . . . . . Derelict Logs Recovered . | . . . . . Drone Launches . | . . . . . Drone Recoveries . | . . . . . Exploration | -11 -10 -9 -8 -8 ------------- Run | Yrd Mat Mat Mat Gar Turns Passed 6771 | 65 668 2855 2442 741 Spaces Moved 2505 | 37 339 1011 887 231 Core 6 | 6 . . . . Treads 2499 | 31 339 1011 887 231 Legs . | . . . . . Wheels . | . . . . . Hover . | . . . . . Flight . | . . . . . Fastest Speed 50 | 50 160 160 160 158 Average Speed 223 | 142 160 236 239 211 Slowest Speed 400 | 160 160 320 400 330 Overloaded Moves . | . . . . . Propulsion Burnouts . | . . . . . Robots Hopped . | . . . . . Cave-ins Triggered . | . . . . . Exploration Rate (%) 48 | 4 53 85 55 46 Regions Visited 4 Branch Regions . Pre-discovered Areas . | . . . . . Known Exits Taken 1 | . . . 1 . Unknown Exits Taken 3 | 1 1 1 . . Scrap Searched . | . . . . . Spaces Dug . | . . . . . Terrain Destroyed 233 | . 106 38 88 1 Melee . | . . . . . Projectile 42 | . . 20 22 . AOE 191 | . 106 18 66 1 Terrain Rammed . | . . . . . Walls Destroyed . | . . . . . Machines Disabled . | . . . . . Actions | -11 -10 -9 -8 -8 --------- Run | Yrd Mat Mat Mat Gar Total 3143 | 49 428 1269 1049 348 Wait 164 | . 56 64 29 15 Move 2502 | 36 338 1010 887 231 Hop . | . . . . . Pick Up 74 | 7 6 32 21 8 Fast Attach 1 | 1 . . . . Attach 50 | 5 5 9 19 12 Detach . | . . . . . Swap 26 | . 2 15 9 . Drop 29 | . 1 16 9 3 Fire 295 | . 20 123 75 77 Melee . | . . . . . Ram . | . . . . . Kick . | . . . . . Crush . | . . . . . Escape Stasis 2 | . . . . 2 Rewire . | . . . . . Trap . | . . . . . Miscellaneous . | . . . . . Route ------- -11/Scrapyard -10/Materials (discovered 2 exits: *Mat / [*Min]) -9/Materials (discovered 3 exits: *Mat x2 / *Min) -8/Materials (discovered 3 exits: [*Fac x2] / Gar) -8/Garrison History --------- Turn | Location | Event 6 | -11/Scrapyard | Discovered new exit (range 14) 66 | -11/Scrapyard | Entered Materials 312 | -10/Materials | Discovered new exit (range 13) 314 | -10/Materials | Build established: Mutant 639 | -10/Materials | Lost 3 parts (1u2w) 685 | -10/Materials | Discovered new exit (range 16) 734 | -10/Materials | Entered another Materials area 734 | -9/Materials | Evolved 2 slots: Power x1, Utility x1 741 | -9/Materials | Identified exit to Mines 1390 | -9/Materials | Destroyed 8 combat bots 2556 | -9/Materials | Discovered new exit (range 13) 3567 | -9/Materials | Discovered new exit (range 10) 3589 | -9/Materials | Entered another Materials area 3589 | -8/Materials | Evolved 2 slots: Propulsion x1, Weapon x1 3880 | -8/Materials | Build established: Skirmisher 4536 | -8/Materials | Lost 4 parts (1p1n2w) 4877 | -8/Materials | Lost 4 parts (1p2n1w) 4933 | -8/Materials | Core integrity fell below 50% 5200 | -8/Materials | Build established: Scavenger-Skirmisher 5380 | -8/Materials | Discovered new exit (range 16) 5746 | -8/Materials | Discovered new exit (range 3) 6031 | -8/Materials | Identified exit to Garrison 6031 | -8/Materials | Entered Garrison 6074 | -8/Garrison | Triggered checkpoint 6141 | -8/Garrison | Installed Relay Interface Framework 6325 | -8/Garrison | Triggered checkpoint 6335 | -8/Garrison | Triggered checkpoint 6509 | -8/Garrison | Core integrity fell below 20% 6522 | -8/Garrison | Lost 8 parts (2p2n1u3w) 6670 | -8/Garrison | Triggered checkpoint 6734 | -8/Garrison | Triggered checkpoint 6772 | -8/Garrison | Destroyed by H-55 Commando with Gauss Rifle Last Messages --------------- Dropped Corrupted Reaction Control System. Slug penetrates Wall. Penetrated by Slug. Slug penetrates Wall. Penetrated by Slug. Imp. Treads destroyed. Slug penetrates Wall. Lgt. Deuterium Engine destroyed. Lgt. Nuclear Core destroyed. Penetrated by Slug. Critical hit (Burn: +37). Y-45 Defender destroyed. Switching to secondary target: Y-45 Defender. Penetrated by Slug. Lgt. Assault Rifle destroyed. Adv. Treads destroyed. Penetrated by Slug. Minigun destroyed. Y-45 Defender destroyed. Penetrated by Slug. Map ----- +----------------------------------------------------+ | ?????????????????????????????????????????????????? | | ?????????????????????????????????????????????????? | | ?????????????????????????????????????????????????? | | ?????????????????????????????????????????????????? | | ?????????????????????????????????????????????????? | | ?????????????????????????????????????????????????? | | ?????????????????????????????????????????????????? | | ?????????????????????????????????????????????????? | | ????????????????????????? ?????????????????????? | | ????????????????????????? #????????????????????? | | ????????????????????????? #????????????????????? | | ????????????????????????? #????????????????????? | | ????????????????????????# #????????????????????? | | ????????????????????????# #????????????????????? | | ????????????????????????# #????????????????????? | | ????????????????????????# #????????????????????? | | ????????????????????????# #????????????????????? | | ????????????????????????# #????????????????????? | | ????????????????????????# #????????????????????? | | ????????????????????????# #????????????????????? | | ????????????????????????# #????????????????????? | | ????????????????????????# #????????????????????? | | ????????????????????????# #????????????????????? | | ????????????????????????# #????????????????????? | | ????????????????????????# #????????????????????? | | ????????????????????????#@ #????????????????????? | | ????????????????????????#[!!#????????????????????? | | ??????????????###########%=%############?????????? | | ??????????? *[!=; #?????????? | | ??????????? # #?????????? | | ???????????????##### ## #### #### #?????????? | | ???????????????????# ?# #??# #??# #?????????? | | ???????????????????###??# #??# #??#! #???????### | | ????????????????????????# ^#??# #??#/ #???????# | | ????????????????????????# #??# #??# #######?# # | | ????????????????????????# #??# #??# ##==* #?# # | | ????????????????????????# h####"#### [##%! ### # | | ????????????????????????# %* !^= | | ????????????????????????# %% ! | | ????????????????????????# ^% = | | ????????????????????????############ ## =#" | | ?????????????????????????????????### ## ## = | | ?????????????????????????????????# | | ?????????????????????????????????# = | | ?????????????????????????????????# * [ | | ?????????????????????????????????# = [ | | ?????????????????????????????????### ## ## | | ???????????????????????????????????# ?# ## | | ?????????????????????????????????? | | ???????????????????????????????? | +----------------------------------------------------+ Best States ------------- Heat Dissipation 64 Energy Generation 23 Energy Capacity 460 Matter Stores 300 Matter Capacity 300 Sight Range 16 Robot Scan Range 15 Terrain Scan Range 16 Terrain Scan Density 10 ECM Strength 1 Evasion (%) 40 Recoil Reduction 3 Item Schematics ----------------- None Robot Schematics ------------------ None Fabricated ------------ Nothing Alien Tech Used ----------------- None Achievements -------------- None Challenges ------------ None Game ------ Seed MassPiercingDevice Manual? 0 Play Time 00:46:43 Cumulative 13.3 hours Start 2024.04.09 @ 16:58:48 End 2024.04.09 @ 20:31:03 Sessions 3 Manual Loads 0 Difficulty Rogue Special Mode None Game No. 33 Rogue 31 Adventurer 2 Explorer 0 Win Type - Total 0 Types 0/0/0/0/0/0/0/0/0 Lore% 8 Gallery% 22 Achievement% 16 Wizard Run 0 Options --------- Layout 1 ASCII 0 Keyboard 0 Movement Mouse Keybinds 0 Fullscreen 1 Font 16/SmallcapsGlow Map View 27x19 Zoom Use 89% Tactical HUD 0 Map Filters NONE Filters NONE Steam 1 RUN: 16dbe6aa-570a-48e1-a378-f7c3cb13bb93